[Event "Titled Tuesday Blitz July 25 Early 2023"]
[White "Nunez V, Gustavo Eduardo"]
[Black "Nagy, Gabor"]
[WhiteFideId "4403690"]
[BlackFideId "737119"]
[WhiteElo "2424"]
[BlackElo "2787"]
[Result "0-1"]
[Round "1"]
[TimeControl "180+2"]
[Date "2023.07.25"]
[WhiteClock "0:00:12"]
[BlackClock "0:01:17"]
[Board "77"]

1. e4 {[%clk 0:02:56]}  c6 {[%clk 0:02:54]} 2. d3 {[%clk 0:02:55]}  d5 {[%clk 0:02:54]} 3. Nd2 {[%clk 0:02:56]}  Qc7 {[%clk 0:02:55]} 4. g3 {[%clk 0:02:54]}  e5 {[%clk 0:02:54]} 5. Bg2 {[%clk 0:02:54]}  Nf6 {[%clk 0:02:55]} 6. Ngf3 {[%clk 0:02:54]}  Bd6 {[%clk 0:02:54]} 7. O-O {[%clk 0:02:54]}  O-O {[%clk 0:02:54]} 8. c4 {[%clk 0:02:54]}  d4 {[%clk 0:02:50]} 9. h3 {[%clk 0:02:52]}  a5 {[%clk 0:02:48]} 10. Nh4 {[%clk 0:02:47]}  Na6 {[%clk 0:02:47]} 11. a3 {[%clk 0:02:40]}  Re8 {[%clk 0:02:45]} 12. Ndf3 {[%clk 0:02:40]}  Bf8 {[%clk 0:02:42]} 13. Nh2 {[%clk 0:02:38]}  Nc5 {[%clk 0:02:40]} 14. f4 {[%clk 0:02:30]}  exf4 {[%clk 0:02:35]} 15. gxf4 {[%clk 0:02:23]}  a4 {[%clk 0:02:33]} 16. Ng4 {[%clk 0:02:18]}  Nxg4 {[%clk 0:02:28]} 17. hxg4 {[%clk 0:02:19]}  Nb3 {[%clk 0:02:28]} 18. Rb1 {[%clk 0:02:11]}  Ra5 {[%clk 0:02:29]} 19. g5 {[%clk 0:02:04]}  b5 {[%clk 0:02:25]} 20. cxb5 {[%clk 0:01:57]}  Rxb5 {[%clk 0:02:26]} 21. Bd2 {[%clk 0:01:57]}  c5 {[%clk 0:02:17]} 22. f5 {[%clk 0:01:41]}  c4 {[%clk 0:02:13]} 23. Bf4 {[%clk 0:01:41]}  Bd6 {[%clk 0:02:10]} 24. Bxd6 {[%clk 0:01:39]}  Qxd6 {[%clk 0:02:11]} 25. dxc4 {[%clk 0:01:36]}  Rc5 {[%clk 0:02:10]} 26. Qh5 {[%clk 0:01:26]}  g6 {[%clk 0:02:07]} 27. Qh6 {[%clk 0:01:22]}  d3 {[%clk 0:02:06]} 28. fxg6 {[%clk 0:01:13]}  fxg6 {[%clk 0:02:04]} 29. Rf6 {[%clk 0:01:12]}  Qd4+ {[%clk 0:01:53]} 30. Kh1 {[%clk 0:01:12]}  d2 {[%clk 0:01:51]} 31. Rd1 {[%clk 0:01:01]}  Bg4 {[%clk 0:01:37]} 32. Nxg6 {[%clk 0:01:01]}  Qxf6 {[%clk 0:01:36]} 33. gxf6 {[%clk 0:00:47]}  Rh5+ {[%clk 0:01:37]} 34. Qxh5 {[%clk 0:00:42]}  Bxh5 {[%clk 0:01:38]} 35. Ne7+ {[%clk 0:00:43]}  Kf7 {[%clk 0:01:34]} 36. Rf1 {[%clk 0:00:36]}  d1=Q {[%clk 0:01:31]} 37. Rxd1 {[%clk 0:00:36]}  Bxd1 {[%clk 0:01:32]} 38. e5 {[%clk 0:00:37]}  Rxe7 {[%clk 0:01:29]} 39. fxe7 {[%clk 0:00:35]}  Kxe7 {[%clk 0:01:30]} 40. Be4 {[%clk 0:00:34]}  h6 {[%clk 0:01:29]} 41. Kg2 {[%clk 0:00:31]}  Ke6 {[%clk 0:01:29]} 42. Kf2 {[%clk 0:00:30]}  Kxe5 {[%clk 0:01:29]} 43. Ke3 {[%clk 0:00:30]}  Nc5 {[%clk 0:01:29]} 44. Bc6 {[%clk 0:00:28]}  Bb3 {[%clk 0:01:29]} 45. Bf3 {[%clk 0:00:28]}  Bxc4 {[%clk 0:01:28]} 46. Kd2 {[%clk 0:00:28]}  Bb3 {[%clk 0:01:29]} 47. Kc3 {[%clk 0:00:29]}  Bd5 {[%clk 0:01:27]} 48. Bd1 {[%clk 0:00:28]}  Kd6 {[%clk 0:01:22]} 49. Kb4 {[%clk 0:00:27]}  Bb3 {[%clk 0:01:22]} 50. Bh5 {[%clk 0:00:26]}  Nd3+ {[%clk 0:01:22]} 51. Kc3 {[%clk 0:00:27]}  Nf4 {[%clk 0:01:23]} 52. Be8 {[%clk 0:00:24]}  Kc5 {[%clk 0:01:23]} 53. Kd2 {[%clk 0:00:20]}  Kd4 {[%clk 0:01:22]} 54. Ke1 {[%clk 0:00:19]}  Ke3 {[%clk 0:01:22]} 55. Kf1 {[%clk 0:00:19]}  h5 {[%clk 0:01:22]} 56. Kg1 {[%clk 0:00:19]}  h4 {[%clk 0:01:23]} 57. Kh2 {[%clk 0:00:19]}  Kd2 {[%clk 0:01:22]} 58. Bd7 {[%clk 0:00:19]}  Kc1 {[%clk 0:01:22]} 59. Kg1 {[%clk 0:00:18]}  Kxb2 {[%clk 0:01:22]} 60. Kf2 {[%clk 0:00:19]}  Kxa3 {[%clk 0:01:20]} 61. Kf3 {[%clk 0:00:20]}  Ng6 {[%clk 0:01:20]} 62. Bf5 {[%clk 0:00:19]}  Bf7 {[%clk 0:01:16]} 63. Kg4 {[%clk 0:00:14]}  Kb2 {[%clk 0:01:16]} 64. Bxg6 {[%clk 0:00:09]}  Bxg6 {[%clk 0:01:15]} 65. Kxh4 {[%clk 0:00:10]}  a3 {[%clk 0:01:16]} 66. Kg5 {[%clk 0:00:11]}  a2 {[%clk 0:01:16]} 67. Kxg6 {[%clk 0:00:11]}  a1=Q {[%clk 0:01:17]} 68. Kf5 {[%clk 0:00:11]}  Qe1 {[%clk 0:01:16]} 69. Kf4 {[%clk 0:00:11]}  Kc3 {[%clk 0:01:17]} 70. Kg4 {[%clk 0:00:12]}  Kd4 {[%clk 0:01:17]} 0-1


[Site "https://www.chess.com"]

[Event "Titled Tuesday Blitz July 25 Early 2023"]
[White "Elsa167"]
[Black "Davidson, Kevin"]
[BlackFideId "2056810"]
[WhiteElo "2786"]
[BlackElo "2423"]
[Result "1-0"]
[Round "1"]
[TimeControl "180+2"]
[Date "2023.07.25"]
[WhiteClock "0:00:51"]
[BlackClock "0:00:01"]
[Board "78"]

1. d4 {[%clk 0:02:59]}  Nf6 {[%clk 0:02:56]} 2. c4 {[%clk 0:02:59]}  g6 {[%clk 0:02:55]} 3. Nc3 {[%clk 0:02:59]}  Bg7 {[%clk 0:02:56]} 4. e4 {[%clk 0:03:00]}  d6 {[%clk 0:02:56]} 5. h3 {[%clk 0:03:00]}  O-O {[%clk 0:02:55]} 6. Be3 {[%clk 0:03:00]}  Na6 {[%clk 0:02:39]} 7. g4 {[%clk 0:03:00]}  e5 {[%clk 0:02:37]} 8. d5 {[%clk 0:03:00]}  Nc5 {[%clk 0:02:36]} 9. f3 {[%clk 0:03:00]}  a5 {[%clk 0:02:36]} 10. Qd2 {[%clk 0:03:00]}  Nfd7 {[%clk 0:02:24]} 11. Nge2 {[%clk 0:02:53]}  Nb6 {[%clk 0:02:21]} 12. Ng3 {[%clk 0:02:52]}  a4 {[%clk 0:02:21]} 13. h4 {[%clk 0:02:51]}  Bd7 {[%clk 0:02:14]} 14. h5 {[%clk 0:02:51]}  Qe7 {[%clk 0:02:08]} 15. Qh2 {[%clk 0:02:43]}  Bf6 {[%clk 0:01:35]} 16. g5 {[%clk 0:02:30]}  Bh8 {[%clk 0:01:21]} 17. O-O-O {[%clk 0:02:19]}  Rfd8 {[%clk 0:00:49]} 18. Kb1 {[%clk 0:02:19]}  Be8 {[%clk 0:00:48]} 19. Qc2 {[%clk 0:01:56]}  c6 {[%clk 0:00:46]} 20. Rd2 {[%clk 0:01:54]}  cxd5 {[%clk 0:00:47]} 21. cxd5 {[%clk 0:01:53]}  Rdc8 {[%clk 0:00:47]} 22. Rdh2 {[%clk 0:01:46]}  Bg7 {[%clk 0:00:24]} 23. hxg6 {[%clk 0:01:34]}  hxg6 {[%clk 0:00:25]} 24. Rh7 {[%clk 0:01:34]}  f6 {[%clk 0:00:13]} 25. Qh2 {[%clk 0:01:23]}  fxg5 {[%clk 0:00:06]} 26. Bh3 {[%clk 0:01:19]}  Kf8 {[%clk 0:00:01]} 27. Be6 {[%clk 0:00:51]}  Nxe6 {[%clk 0:00:01]} 28. dxe6 {[%clk 0:00:52]}  Nc4 {[%clk 0:00:01]} 29. Rh8+ {[%clk 0:00:51]} 1-0


[Site "https://www.chess.com"]

[Event "Titled Tuesday Blitz July 25 Early 2023"]
[White "zsizsi99"]
[Black "qx4z"]
[WhiteElo "2423"]
[BlackElo "2785"]
[Result "0-1"]
[Round "1"]
[TimeControl "180+2"]
[Date "2023.07.25"]
[WhiteClock "0:00:12"]
[BlackClock "0:00:41"]
[Board "79"]

1. e4 {[%clk 0:03:00]}  e5 {[%clk 0:02:58]} 2. d4 {[%clk 0:03:00]}  exd4 {[%clk 0:02:59]} 3. Qxd4 {[%clk 0:03:00]}  Nc6 {[%clk 0:03:00]} 4. Qe3 {[%clk 0:03:01]}  Nf6 {[%clk 0:03:00]} 5. Nc3 {[%clk 0:03:01]}  Bb4 {[%clk 0:03:00]} 6. Bd2 {[%clk 0:03:02]}  O-O {[%clk 0:03:01]} 7. O-O-O {[%clk 0:03:03]}  Re8 {[%clk 0:03:01]} 8. Qf4 {[%clk 0:03:03]}  d6 {[%clk 0:02:54]} 9. f3 {[%clk 0:03:02]}  Be6 {[%clk 0:02:52]} 10. h4 {[%clk 0:02:49]}  a5 {[%clk 0:02:48]} 11. h5 {[%clk 0:02:47]}  a4 {[%clk 0:02:42]} 12. a3 {[%clk 0:02:45]}  Bc5 {[%clk 0:02:42]} 13. g4 {[%clk 0:02:35]}  Nd7 {[%clk 0:02:39]} 14. Bb5 {[%clk 0:02:26]}  Nd4 {[%clk 0:02:35]} 15. Bxa4 {[%clk 0:02:22]}  b5 {[%clk 0:02:27]} 16. Bxb5 {[%clk 0:02:19]}  c6 {[%clk 0:02:28]} 17. Ba4 {[%clk 0:02:08]}  Qb6 {[%clk 0:02:27]} 18. b4 {[%clk 0:00:47]}  Bxb4 {[%clk 0:02:15]} 19. axb4 {[%clk 0:00:47]}  Qxb4 {[%clk 0:02:15]} 20. Be3 {[%clk 0:00:41]}  Nxc2 {[%clk 0:01:46]} 21. Kxc2 {[%clk 0:00:38]}  Rxa4 {[%clk 0:01:41]} 22. Rb1 {[%clk 0:00:31]}  Qc4 {[%clk 0:01:20]} 23. Kd2 {[%clk 0:00:23]}  Ne5 {[%clk 0:01:17]} 24. Nge2 {[%clk 0:00:20]}  Ra2+ {[%clk 0:00:52]} 25. Ke1 {[%clk 0:00:19]}  Nd3+ {[%clk 0:00:52]} 26. Kf1 {[%clk 0:00:15]}  Nxf4 {[%clk 0:00:53]} 27. Bxf4 {[%clk 0:00:15]}  Qd3 {[%clk 0:00:41]} 28. Rd1 {[%clk 0:00:12]}  Qxf3+ {[%clk 0:00:41]} 0-1


[Site "https://www.chess.com"]

[Event "Titled Tuesday Blitz July 25 Early 2023"]
[White "Rosh Jain"]
[Black "Rahman, Masruri"]
[WhiteFideId "25789465"]
[BlackFideId "7101163"]
[WhiteElo "2421"]
[BlackElo "2783"]
[Result "1-0"]
[Round "1"]
[TimeControl "180+2"]
[Date "2023.07.25"]
[WhiteClock "0:00:04"]
[BlackClock "0:00:08"]
[Board "81"]

1. e4 {[%clk 0:02:59]}  e6 {[%clk 0:02:59]} 2. d4 {[%clk 0:02:59]}  d5 {[%clk 0:03:00]} 3. Nc3 {[%clk 0:02:59]}  Bb4 {[%clk 0:03:00]} 4. exd5 {[%clk 0:02:59]}  exd5 {[%clk 0:03:00]} 5. Bd3 {[%clk 0:02:59]}  Nc6 {[%clk 0:03:00]} 6. Ne2 {[%clk 0:02:58]}  Nge7 {[%clk 0:03:00]} 7. O-O {[%clk 0:02:58]}  Bf5 {[%clk 0:03:01]} 8. Bg5 {[%clk 0:02:55]}  f6 {[%clk 0:03:00]} 9. Bf4 {[%clk 0:02:50]}  Bxc3 {[%clk 0:02:55]} 10. bxc3 {[%clk 0:02:47]}  O-O {[%clk 0:02:53]} 11. Rb1 {[%clk 0:02:42]}  b6 {[%clk 0:02:53]} 12. Ng3 {[%clk 0:02:42]}  Bxd3 {[%clk 0:02:50]} 13. cxd3 {[%clk 0:02:42]}  Qd7 {[%clk 0:02:50]} 14. Re1 {[%clk 0:02:42]}  Ng6 {[%clk 0:02:50]} 15. Bd2 {[%clk 0:02:40]}  f5 {[%clk 0:02:44]} 16. f4 {[%clk 0:02:27]}  Rae8 {[%clk 0:02:39]} 17. Qf3 {[%clk 0:02:26]}  Nd8 {[%clk 0:02:26]} 18. Nf1 {[%clk 0:02:21]}  c6 {[%clk 0:02:22]} 19. g3 {[%clk 0:02:21]}  Rxe1 {[%clk 0:02:18]} 20. Rxe1 {[%clk 0:02:20]}  Re8 {[%clk 0:02:19]} 21. Be3 {[%clk 0:02:20]}  Nb7 {[%clk 0:02:14]} 22. Nd2 {[%clk 0:02:20]}  Nd6 {[%clk 0:02:15]} 23. Qf2 {[%clk 0:02:20]}  Qb7 {[%clk 0:02:04]} 24. Nf3 {[%clk 0:02:20]}  Qa6 {[%clk 0:02:03]} 25. Qc2 {[%clk 0:02:18]}  Qa3 {[%clk 0:01:57]} 26. Ne5 {[%clk 0:02:18]}  Rc8 {[%clk 0:01:31]} 27. Bc1 {[%clk 0:02:05]}  Qa5 {[%clk 0:01:24]} 28. Qb3 {[%clk 0:02:04]}  Nxe5 {[%clk 0:01:17]} 29. Rxe5 {[%clk 0:01:54]}  Re8 {[%clk 0:01:09]} 30. Ba3 {[%clk 0:01:48]}  Rxe5 {[%clk 0:01:07]} 31. dxe5 {[%clk 0:01:44]}  Nb5 {[%clk 0:01:05]} 32. Bb4 {[%clk 0:01:44]}  Qa6 {[%clk 0:01:06]} 33. a4 {[%clk 0:01:38]}  Nc7 {[%clk 0:01:06]} 34. Bd6 {[%clk 0:01:32]}  Ne6 {[%clk 0:01:04]} 35. c4 {[%clk 0:01:25]}  Qa5 {[%clk 0:00:57]} 36. Bb4 {[%clk 0:01:24]}  Nc5 {[%clk 0:00:48]} 37. Bxc5 {[%clk 0:00:26]}  Qxc5+ {[%clk 0:00:49]} 38. Kg2 {[%clk 0:00:26]}  Kf7 {[%clk 0:00:41]} 39. cxd5 {[%clk 0:00:25]}  cxd5 {[%clk 0:00:42]} 40. Kf3 {[%clk 0:00:24]}  Ke6 {[%clk 0:00:40]} 41. Qb2 {[%clk 0:00:17]}  a5 {[%clk 0:00:29]} 42. Qb3 {[%clk 0:00:15]}  h5 {[%clk 0:00:18]} 43. Qb2 {[%clk 0:00:15]}  g6 {[%clk 0:00:18]} 44. d4 {[%clk 0:00:15]}  Qc6 {[%clk 0:00:17]} 45. Ke3 {[%clk 0:00:15]}  Kd7 {[%clk 0:00:16]} 46. Kd2 {[%clk 0:00:12]}  Ke6 {[%clk 0:00:06]} 47. Qb3 {[%clk 0:00:11]}  Kd7 {[%clk 0:00:05]} 48. Kd3 {[%clk 0:00:11]}  Ke6 {[%clk 0:00:06]} 49. h3 {[%clk 0:00:12]}  Kd7 {[%clk 0:00:06]} 50. Ke2 {[%clk 0:00:10]}  Ke6 {[%clk 0:00:06]} 51. Kf3 {[%clk 0:00:10]}  Kd7 {[%clk 0:00:06]} 52. g4 {[%clk 0:00:11]}  hxg4+ {[%clk 0:00:05]} 53. hxg4 {[%clk 0:00:12]}  Ke6 {[%clk 0:00:06]} 54. Kg3 {[%clk 0:00:12]}  Kd7 {[%clk 0:00:05]} 55. Kh4 {[%clk 0:00:11]}  fxg4 {[%clk 0:00:04]} 56. Kxg4 {[%clk 0:00:08]}  Qe6+ {[%clk 0:00:05]} 57. Kg3 {[%clk 0:00:08]}  Kc6 {[%clk 0:00:04]} 58. Qb5+ {[%clk 0:00:08]}  Kb7 {[%clk 0:00:04]} 59. Qd3 {[%clk 0:00:07]}  Kc6 {[%clk 0:00:03]} 60. Qc2+ {[%clk 0:00:07]}  Kb7 {[%clk 0:00:03]} 61. Qb3 {[%clk 0:00:07]}  Qc6 {[%clk 0:00:04]} 62. Kf3 {[%clk 0:00:05]}  Qe6 {[%clk 0:00:03]} 63. Kf2 {[%clk 0:00:04]}  Qf7 {[%clk 0:00:03]} 64. Qe3 {[%clk 0:00:03]}  Qe6 {[%clk 0:00:02]} 65. Kg3 {[%clk 0:00:03]}  Kc6 {[%clk 0:00:02]} 66. Qd3 {[%clk 0:00:03]}  Kb7 {[%clk 0:00:03]} 67. Qb5 {[%clk 0:00:03]}  Qf7 {[%clk 0:00:02]} 68. Qb1 {[%clk 0:00:02]}  Qe6 {[%clk 0:00:02]} 69. Kh4 {[%clk 0:00:02]}  Qe7+ {[%clk 0:00:02]} 70. Kg4 {[%clk 0:00:02]}  Qd7+ {[%clk 0:00:03]} 71. Kg5 {[%clk 0:00:02]}  Qxa4 {[%clk 0:00:03]} 72. Kxg6 {[%clk 0:00:02]}  Qxd4 {[%clk 0:00:04]} 73. Qf5 {[%clk 0:00:01]}  a4 {[%clk 0:00:04]} 74. e6 {[%clk 0:00:01]}  Qh8 {[%clk 0:00:03]} 75. e7 {[%clk 0:00:02]}  Ka6 {[%clk 0:00:04]} 76. Kf7 {[%clk 0:00:02]}  Qb8 {[%clk 0:00:03]} 77. e8=Q {[%clk 0:00:03]}  Qc7+ {[%clk 0:00:03]} 78. Kf8 {[%clk 0:00:03]}  Qc5+ {[%clk 0:00:04]} 79. Qe7 {[%clk 0:00:03]}  a3 {[%clk 0:00:04]} 80. Qxc5 {[%clk 0:00:02]}  bxc5 {[%clk 0:00:05]} 81. Qxd5 {[%clk 0:00:03]}  Kb5 {[%clk 0:00:06]} 82. Qa2 {[%clk 0:00:03]}  Kb4 {[%clk 0:00:06]} 83. f5 {[%clk 0:00:03]}  c4 {[%clk 0:00:07]} 84. f6 {[%clk 0:00:04]}  c3 {[%clk 0:00:08]} 1-0


[Site "https://www.chess.com"]

[Event "Titled Tuesday Blitz July 25 Early 2023"]
[White "Priasmoro, Novendra"]
[Black "Zacurdajev, Dmitry"]
[WhiteFideId "7105029"]
[BlackFideId "4196309"]
[WhiteElo "2777"]
[BlackElo "2419"]
[Result "1-0"]
[Round "1"]
[TimeControl "180+2"]
[Date "2023.07.25"]
[WhiteClock "0:01:51"]
[BlackClock "0:00:04"]
[Board "84"]

1. e4 {[%clk 0:02:56]}  c6 {[%clk 0:02:58]} 2. Ne2 {[%clk 0:02:53]}  d5 {[%clk 0:02:59]} 3. exd5 {[%clk 0:02:53]}  cxd5 {[%clk 0:02:59]} 4. d4 {[%clk 0:02:54]}  Nc6 {[%clk 0:02:59]} 5. c3 {[%clk 0:02:49]}  Bg4 {[%clk 0:02:53]} 6. h3 {[%clk 0:02:48]}  Bh5 {[%clk 0:02:51]} 7. Qb3 {[%clk 0:02:49]}  Qd7 {[%clk 0:02:41]} 8. Nf4 {[%clk 0:02:47]}  Bg6 {[%clk 0:02:40]} 9. Qxd5 {[%clk 0:02:47]}  Qxd5 {[%clk 0:02:34]} 10. Nxd5 {[%clk 0:02:48]}  O-O-O {[%clk 0:02:35]} 11. Nf4 {[%clk 0:02:48]}  e5 {[%clk 0:02:33]} 12. Nxg6 {[%clk 0:02:48]}  hxg6 {[%clk 0:02:32]} 13. dxe5 {[%clk 0:02:49]}  Nxe5 {[%clk 0:02:33]} 14. Bf4 {[%clk 0:02:46]}  Bd6 {[%clk 0:02:23]} 15. Be3 {[%clk 0:02:44]}  Kb8 {[%clk 0:02:09]} 16. Bc1 {[%clk 0:02:44]}  Nf6 {[%clk 0:02:04]} 17. Nd2 {[%clk 0:02:44]}  Bc5 {[%clk 0:01:58]} 18. Be2 {[%clk 0:02:37]}  g5 {[%clk 0:01:32]} 19. Nb3 {[%clk 0:02:34]}  Bb6 {[%clk 0:01:12]} 20. O-O {[%clk 0:02:19]}  Ne4 {[%clk 0:01:01]} 21. Nd4 {[%clk 0:02:17]}  Bxd4 {[%clk 0:00:36]} 22. cxd4 {[%clk 0:02:17]}  Rxd4 {[%clk 0:00:37]} 23. Be3 {[%clk 0:02:16]}  Rd7 {[%clk 0:00:24]} 24. Rfe1 {[%clk 0:02:11]}  f6 {[%clk 0:00:23]} 25. Bb5 {[%clk 0:02:00]}  Rc7 {[%clk 0:00:11]} 26. Bd4 {[%clk 0:01:57]}  Nd6 {[%clk 0:00:08]} 27. Bf1 {[%clk 0:01:55]}  Nec4 {[%clk 0:00:07]} 28. b3 {[%clk 0:01:53]}  Nb6 {[%clk 0:00:04]} 29. Rad1 {[%clk 0:01:52]}  Rc2 {[%clk 0:00:03]} 30. Bxb6 {[%clk 0:01:51]}  axb6 {[%clk 0:00:04]} 31. Rxd6 {[%clk 0:01:51]} 1-0


[Site "https://www.chess.com"]

[Event "Titled Tuesday Blitz July 25 Early 2023"]
[White "Baches Garcia, Guillermo"]
[Black "Wagner, Dennis"]
[WhiteFideId "2209764"]
[BlackFideId "24650684"]
[WhiteElo "2419"]
[BlackElo "2776"]
[Result "1/2-1/2"]
[Round "1"]
[TimeControl "180+2"]
[Date "2023.07.25"]
[WhiteClock "0:00:11"]
[BlackClock "0:00:03"]
[Board "85"]

1. e4 {[%clk 0:03:00]}  c5 {[%clk 0:03:00]} 2. Nf3 {[%clk 0:03:00]}  d6 {[%clk 0:03:00]} 3. d4 {[%clk 0:03:00]}  cxd4 {[%clk 0:03:01]} 4. Nxd4 {[%clk 0:03:00]}  Nf6 {[%clk 0:03:01]} 5. Nc3 {[%clk 0:03:01]}  a6 {[%clk 0:03:02]} 6. Be3 {[%clk 0:03:01]}  e5 {[%clk 0:03:02]} 7. Nb3 {[%clk 0:03:01]}  Be7 {[%clk 0:03:02]} 8. f3 {[%clk 0:03:02]}  Be6 {[%clk 0:03:02]} 9. Qd2 {[%clk 0:03:02]}  h5 {[%clk 0:03:02]} 10. Nd5 {[%clk 0:03:01]}  Nxd5 {[%clk 0:03:03]} 11. exd5 {[%clk 0:03:01]}  Bf5 {[%clk 0:03:03]} 12. Bd3 {[%clk 0:03:01]}  Bxd3 {[%clk 0:03:04]} 13. Qxd3 {[%clk 0:03:01]}  Bh4+ {[%clk 0:03:05]} 14. g3 {[%clk 0:03:01]}  Be7 {[%clk 0:03:06]} 15. O-O-O {[%clk 0:03:00]}  Nd7 {[%clk 0:03:02]} 16. Kb1 {[%clk 0:02:58]}  O-O {[%clk 0:02:48]} 17. Nd2 {[%clk 0:02:51]}  f5 {[%clk 0:02:40]} 18. f4 {[%clk 0:02:42]}  e4 {[%clk 0:02:33]} 19. Qe2 {[%clk 0:02:39]}  b5 {[%clk 0:02:32]} 20. Qxh5 {[%clk 0:02:34]}  Rc8 {[%clk 0:01:44]} 21. Nb3 {[%clk 0:02:30]}  Qc7 {[%clk 0:01:25]} 22. Rc1 {[%clk 0:02:20]}  Qc4 {[%clk 0:01:13]} 23. Rhd1 {[%clk 0:02:12]}  Rf7 {[%clk 0:00:51]} 24. Na5 {[%clk 0:01:54]}  Qc7 {[%clk 0:00:41]} 25. Nc6 {[%clk 0:01:51]}  Bf6 {[%clk 0:00:34]} 26. g4 {[%clk 0:01:35]}  fxg4 {[%clk 0:00:32]} 27. Qxg4 {[%clk 0:01:34]}  Re8 {[%clk 0:00:27]} 28. h4 {[%clk 0:01:27]}  Nb6 {[%clk 0:00:27]} 29. h5 {[%clk 0:01:17]}  Nxd5 {[%clk 0:00:23]} 30. Rxd5 {[%clk 0:01:14]}  Qxc6 {[%clk 0:00:23]} 31. Rcd1 {[%clk 0:01:11]}  Rc8 {[%clk 0:00:18]} 32. Qg2 {[%clk 0:01:03]}  Rfc7 {[%clk 0:00:06]} 33. R1d2 {[%clk 0:00:59]}  Qc4 {[%clk 0:00:06]} 34. Rxd6 {[%clk 0:00:52]}  Rc6 {[%clk 0:00:06]} 35. h6 {[%clk 0:00:43]}  Bxb2 {[%clk 0:00:04]} 36. Rd8+ {[%clk 0:00:27]}  Rxd8 {[%clk 0:00:03]} 37. Rxd8+ {[%clk 0:00:26]}  Kh7 {[%clk 0:00:04]} 38. Kxb2 {[%clk 0:00:20]}  Qc3+ {[%clk 0:00:04]} 39. Kb1 {[%clk 0:00:13]}  Qb4+ {[%clk 0:00:04]} 40. Kc1 {[%clk 0:00:13]}  Qe1+ {[%clk 0:00:04]} 41. Kb2 {[%clk 0:00:13]}  Qb4+ {[%clk 0:00:05]} 42. Kc1 {[%clk 0:00:13]}  Qe1+ {[%clk 0:00:05]} 43. Kb2 {[%clk 0:00:14]}  Qb4+ {[%clk 0:00:03]} 44. Kc1 {[%clk 0:00:11]} 1/2-1/2


[Site "https://www.chess.com"]

[Event "Titled Tuesday Blitz July 25 Early 2023"]
[White "Kantor, Gergely"]
[Black "i_like_explosions"]
[WhiteFideId "751499"]
[WhiteElo "2775"]
[BlackElo "2418"]
[Result "1-0"]
[Round "1"]
[TimeControl "180+2"]
[Date "2023.07.25"]
[WhiteClock "0:02:42"]
[BlackClock "0:01:53"]
[Board "86"]

1. e4 {[%clk 0:02:59]}  c5 {[%clk 0:02:59]} 2. Nf3 {[%clk 0:02:59]}  Nc6 {[%clk 0:02:59]} 3. Bb5 {[%clk 0:02:58]}  e6 {[%clk 0:02:59]} 4. O-O {[%clk 0:02:58]}  Nge7 {[%clk 0:02:59]} 5. Re1 {[%clk 0:02:59]}  a6 {[%clk 0:02:59]} 6. Bf1 {[%clk 0:02:58]}  d5 {[%clk 0:02:59]} 7. d3 {[%clk 0:02:59]}  d4 {[%clk 0:02:52]} 8. e5 {[%clk 0:02:57]}  Nd5 {[%clk 0:02:49]} 9. Nbd2 {[%clk 0:02:53]}  Be7 {[%clk 0:02:49]} 10. Ne4 {[%clk 0:02:53]}  b6 {[%clk 0:02:45]} 11. c4 {[%clk 0:02:51]}  dxc3 {[%clk 0:02:42]} 12. bxc3 {[%clk 0:02:52]}  Bb7 {[%clk 0:02:42]} 13. Rb1 {[%clk 0:02:51]}  Qc7 {[%clk 0:02:36]} 14. c4 {[%clk 0:02:47]}  Ndb4 {[%clk 0:02:26]} 15. a3 {[%clk 0:02:47]}  Nd5 {[%clk 0:01:58]} 16. cxd5 {[%clk 0:02:45]}  exd5 {[%clk 0:01:59]} 17. Nd6+ {[%clk 0:02:45]}  Kd7 {[%clk 0:01:53]} 18. Nxf7 {[%clk 0:02:42]} 1-0


[Site "https://www.chess.com"]

[Event "Titled Tuesday Blitz July 25 Early 2023"]
[White "chessking0310"]
[Black "Pandey Srishti"]
[BlackFideId "35093290"]
[WhiteElo "2772"]
[BlackElo "2415"]
[Result "1-0"]
[Round "1"]
[TimeControl "180+2"]
[Date "2023.07.25"]
[WhiteClock "0:01:27"]
[BlackClock "0:01:18"]
[Board "88"]

1. e4 {[%clk 0:03:00]}  e5 {[%clk 0:02:59]} 2. Nf3 {[%clk 0:03:00]}  Nc6 {[%clk 0:03:00]} 3. Bb5 {[%clk 0:02:59]}  a6 {[%clk 0:02:59]} 4. Ba4 {[%clk 0:02:59]}  Nf6 {[%clk 0:03:00]} 5. d3 {[%clk 0:02:59]}  b5 {[%clk 0:03:00]} 6. Bb3 {[%clk 0:02:59]}  Bc5 {[%clk 0:03:01]} 7. Nc3 {[%clk 0:02:59]}  h6 {[%clk 0:02:59]} 8. Nd5 {[%clk 0:02:59]}  d6 {[%clk 0:02:58]} 9. c3 {[%clk 0:03:00]}  Bd7 {[%clk 0:02:53]} 10. h3 {[%clk 0:02:57]}  Na5 {[%clk 0:02:48]} 11. Nxf6+ {[%clk 0:02:57]}  Qxf6 {[%clk 0:02:49]} 12. Bc2 {[%clk 0:02:56]}  Bb6 {[%clk 0:02:45]} 13. d4 {[%clk 0:02:51]}  Nc4 {[%clk 0:02:43]} 14. O-O {[%clk 0:02:44]}  exd4 {[%clk 0:02:38]} 15. cxd4 {[%clk 0:02:44]}  O-O {[%clk 0:02:38]} 16. b3 {[%clk 0:02:43]}  Na5 {[%clk 0:02:38]} 17. Be3 {[%clk 0:02:33]}  Nc6 {[%clk 0:02:35]} 18. Rc1 {[%clk 0:02:32]}  Rad8 {[%clk 0:02:30]} 19. Bb1 {[%clk 0:02:31]}  Rfe8 {[%clk 0:02:27]} 20. Kh2 {[%clk 0:02:22]}  Nb8 {[%clk 0:02:25]} 21. Qc2 {[%clk 0:02:16]}  Qg6 {[%clk 0:02:19]} 22. Qd2 {[%clk 0:02:14]}  Qf6 {[%clk 0:02:15]} 23. d5 {[%clk 0:02:09]}  Bxe3 {[%clk 0:02:12]} 24. fxe3 {[%clk 0:02:09]}  Rc8 {[%clk 0:02:11]} 25. Qd3 {[%clk 0:01:58]}  g6 {[%clk 0:02:06]} 26. Kg1 {[%clk 0:01:50]}  c5 {[%clk 0:02:01]} 27. Qd2 {[%clk 0:01:45]}  Qg7 {[%clk 0:01:56]} 28. Qf2 {[%clk 0:01:46]}  b4 {[%clk 0:01:51]} 29. Qg3 {[%clk 0:01:46]}  Bb5 {[%clk 0:01:36]} 30. Rf2 {[%clk 0:01:46]}  Rcd8 {[%clk 0:01:36]} 31. Nh2 {[%clk 0:01:35]}  a5 {[%clk 0:01:33]} 32. Ng4 {[%clk 0:01:35]}  Nd7 {[%clk 0:01:32]} 33. Qxd6 {[%clk 0:01:35]}  h5 {[%clk 0:01:32]} 34. Nf6+ {[%clk 0:01:32]}  Nxf6 {[%clk 0:01:31]} 35. Qxf6 {[%clk 0:01:33]}  Qxf6 {[%clk 0:01:31]} 36. Rxf6 {[%clk 0:01:33]}  a4 {[%clk 0:01:31]} 37. Rb6 {[%clk 0:01:33]}  Rb8 {[%clk 0:01:29]} 38. Rxb8 {[%clk 0:01:33]}  Rxb8 {[%clk 0:01:30]} 39. Rxc5 {[%clk 0:01:34]}  a3 {[%clk 0:01:30]} 40. Kf2 {[%clk 0:01:33]}  Ba6 {[%clk 0:01:27]} 41. Kf3 {[%clk 0:01:30]}  Kf8 {[%clk 0:01:27]} 42. Kf4 {[%clk 0:01:31]}  Ke7 {[%clk 0:01:27]} 43. e5 {[%clk 0:01:31]}  Bf1 {[%clk 0:01:25]} 44. Be4 {[%clk 0:01:30]}  Rg8 {[%clk 0:01:19]} 45. Rc7+ {[%clk 0:01:28]}  Ke8 {[%clk 0:01:18]} 46. Kg5 {[%clk 0:01:27]} 1-0


[Site "https://www.chess.com"]